fUST/lending_fUST_20241114
["ID","MTS","AMOUNT","RATE_DAILY","PERIOD"]
[342188387,1731573051535,-502.50572852,0.00021917,2]
[342188388,1731573051544,-1193.79,0.00021917,2]
[342188389,1731573051553,-500.0,0.00021917,2]
[342188390,1731573051566,-1193.79,0.00021917,2]
[342188391,1731573051582,-1193.94435928,0.00021917,2]
[342188392,1731573051591,-1146.99,0.00021917,2]
[342188393,1731573051600,-503.78489816,0.00021917,2]
[342188394,1731573051609,-500.0,0.00021917,2]
[342188395,1731573051619,-500.25359227,0.00021917,2]
[342188396,1731573051628,-500.0,0.00021917,2]
[342188397,1731573051637,-500.0,0.00021917,2]
[342188398,1731573051646,-500.0,0.00021917,2]
[342188399,1731573051655,-500.0,0.00021917,2]
[342188400,1731573051664,-500.0,0.00021917,2]
[342188401,1731573051674,-583.8,0.00021917,2]
[342188402,1731573051683,-500.0,0.00021917,2]
[342188403,1731573051692,-151.0,0.00021917,2]
[342188404,1731573051701,-156.559047,0.00021917,2]
[342188405,1731573051710,-527.44071832,0.00021917,2]
[342188406,1731573051719,-500.0,0.00021917,2]
[342188407,1731573051728,-500.0,0.00021917,2]
[342188408,1731573051737,-1972.19,0.00021917,2]
[342188409,1731573051746,-500.0,0.00021917,2]
[342188410,1731573051756,-500.0,0.00021917,2]
[342188411,1731573051766,-509.69353787,0.00021917,2]
[342188412,1731573051775,-500.0,0.00021917,2]
[342188413,1731573051785,-151.0,0.00021917,2]
[342188414,1731573051794,-151.0,0.00021917,2]
[342188415,1731573051803,-500.0,0.00021917,2]
[342188416,1731573051815,-151.0,0.00021917,2]
[342188417,1731573051824,-214.41475012,0.00021917,2]
[342188418,1731573051833,-500.0,0.00021917,2]
[342188419,1731573051843,-500.0,0.00021917,2]
[342188420,1731573051854,-151.0,0.00021917,2]
[342188421,1731573051863,-151.0,0.00021917,2]
[342188422,1731573051872,-3866.65,0.00021917,2]
[342188423,1731573051881,-500.0,0.00021917,2]
[342188424,1731573051891,-500.0,0.00021917,2]
[342188425,1731573051900,-507.51025083,0.00021917,2]
[342188426,1731573051910,-517.81552364,0.00021917,2]
[342188427,1731573051919,-500.0,0.00021917,2]
[342188428,1731573051931,-508.9535747,0.00021917,2]
[342188429,1731573051940,-887.8,0.00021917,2]
[342188430,1731573051949,-500.0,0.00021917,2]
[342188431,1731573051958,-500.0,0.00021917,2]
[342188432,1731573051967,-500.0,0.00021917,2]
[342188433,1731573051978,-500.0,0.00021917,2]
[342188434,1731573051987,-500.0,0.00021917,2]
[342188435,1731573051996,-500.0,0.00021917,2]
[342188436,1731573052005,-1028.53,0.00021917,2]
[342188437,1731573052015,-500.49,0.00021917,2]
[342188438,1731573052024,-500.0,0.00021917,2]
[342188439,1731573052034,-500.0,0.00021917,2]
[342188440,1731573052044,-500.0,0.00021917,2]
[342188441,1731573052053,-500.0,0.00021917,2]
[342188442,1731573052064,-1034.55,0.00021917,2]
[342188443,1731573052074,-1034.55,0.00021917,2]
[342188444,1731573052083,-1034.55,0.00021917,2]
[342188445,1731573052092,-1034.55,0.00021917,2]
[342188446,1731573052102,-1034.55,0.00021917,2]
[342188447,1731573052111,-500.0,0.00021917,2]
[342188448,1731573052120,-1034.55,0.00021917,2]
[342188449,1731573052130,-1034.55,0.00021917,2]
[342188450,1731573052139,-1034.55,0.00021917,2]
[342188451,1731573052148,-1034.55,0.00021917,2]
[342188452,1731573052157,-1034.55,0.00021917,2]
[342188453,1731573052166,-500.0,0.00021917,2]
[342188454,1731573052175,-1034.55,0.00021917,2]
[342188455,1731573052184,-500.6,0.00021917,2]
[342188456,1731573052193,-1034.55,0.00021917,2]
[342188457,1731573052202,-1034.55,0.00021917,2]
[342188458,1731573052211,-1034.55,0.00021917,2]
[342188459,1731573052220,-1034.55,0.00021917,2]
[342188460,1731573052230,-1034.55,0.00021917,2]
[342188461,1731573052239,-1034.55,0.00021917,2]
[342188462,1731573052247,-500.0,0.00021917,2]
[342188463,1731573052256,-1034.55,0.00021917,2]
[342188464,1731573052266,-1034.55,0.00021917,2]
[342188465,1731573052275,-500.0,0.00021917,2]
[342188466,1731573052284,-1034.55,0.00021917,2]
[342188467,1731573052294,-551.13,0.00021917,2]
[342188468,1731573052303,-1034.55,0.00021917,2]
[342188469,1731573052314,-1034.55,0.00021917,2]
[342188470,1731573052323,-255.61296686,0.00021917,2]
[342188471,1731573052332,-1034.55,0.00021917,2]
[342188472,1731573052341,-1034.6583744,0.00021917,2]
[342188473,1731573052350,-500.0,0.00021917,2]
[342188474,1731573052359,-554.7,0.00021917,2]
[342188475,1731573052368,-521.49871077,0.00021917,2]
[342188476,1731573052377,-500.0,0.00021917,2]
[342188477,1731573052387,-500.0,0.00021917,2]
[342188478,1731573052396,-500.0,0.00021917,2]
[342188479,1731573052405,-500.0,0.00021917,2]
[342188480,1731573052414,-500.0,0.00021917,2]
[342188481,1731573052424,-2235.09,0.00021917,2]
[342188482,1731573052433,-1562.1,0.00021917,2]
[342188483,1731573052443,-500.0,0.00021917,2]
[342188484,1731573052453,-500.0,0.00021917,2]
[342188485,1731573052462,-500.0,0.00021917,2]
[342188486,1731573052472,-594.36737383,0.00021917,2]
[342188487,1731573052482,-207.94700824,0.00021917,2]
[342188488,1731573052492,-500.0,0.00021917,2]
[342188489,1731573052501,-500.0,0.00021917,2]
[342188490,1731573052510,-500.0,0.00021917,2]
[342188491,1731573052518,-523.63354465,0.00021917,2]
[342188492,1731573052528,-500.0,0.00021917,2]
[342188493,1731573052537,-501.84905028,0.00021917,2]
[342188494,1731573052547,-500.0,0.00021917,2]
[342188495,1731573052557,-2880.8,0.00021917,2]
[342188496,1731573052567,-225.61128868,0.00021917,2]
[342188497,1731573052577,-500.0,0.00021917,2]
[342188498,1731573052586,-879.61,0.00021917,2]
[342188499,1731573052595,-500.0,0.00021917,2]
[342188500,1731573052604,-500.0,0.00021917,2]
[342188501,1731573052613,-500.0,0.00021917,2]
[342188502,1731573052622,-1120.94,0.00021917,2]
[342188503,1731573052631,-500.0,0.00021917,2]
[342188504,1731573052639,-500.0,0.00021917,2]
[342188505,1731573052649,-592.303162,0.00021917,2]
[342188506,1731573052659,-592.303162,0.00021917,2]
[342188507,1731573052667,-500.0,0.00021917,2]
[342188508,1731573052679,-500.0,0.00021917,2]
[342188509,1731573052688,-592.303162,0.00021917,2]
[342188510,1731573052698,-4889.16,0.00021917,2]
[342188511,1731573052707,-592.303162,0.00021917,2]
[342188512,1731573052715,-500.0,0.00021917,2]
[342188513,1731573052725,-363.59849763,0.00021917,2]
[342188514,1731573052735,-592.303162,0.00021917,2]
[342188515,1731573052745,-812.97,0.00021917,2]
[342188516,1731573052757,-500.0,0.00021917,2]
[342188517,1731573052766,-500.0,0.00021917,2]
[342188518,1731573052775,-592.303162,0.00021917,2]
[342188519,1731573052784,-500.0,0.00021917,2]
[342188520,1731573052793,-592.303162,0.00021917,2]
[342188521,1731573052802,-592.303162,0.00021917,2]
[342188522,1731573052813,-592.303162,0.00021917,2]
[342188523,1731573052822,-6480.3,0.00021917,2]
[342188524,1731573052831,-500.0,0.00021917,2]
[342188525,1731573052840,-592.303162,0.00021917,2]
[342188526,1731573052851,-763.17,0.00021917,2]
[342188527,1731573052860,-500.0,0.00021917,2]
[342188528,1731573052870,-500.0,0.00021917,2]
[342188529,1731573052880,-500.0,0.00021917,2]
[342188530,1731573052891,-500.0,0.00021917,2]
[342188531,1731573052901,-399.33083532,0.00021917,2]
[342188532,1731573052910,-500.0,0.00021917,2]
[342188533,1731573052919,-500.0,0.00021917,2]
[342188534,1731573052928,-500.59276698,0.00021917,2]
[342188535,1731573052938,-500.0,0.00021917,2]
[342188536,1731573052947,-315.09208972,0.00021917,2]
[342188537,1731573052957,-570.83,0.00021917,2]
[342188538,1731573052966,-1728.07,0.00021917,2]
[342188539,1731573052977,-500.0,0.00021917,2]
[342188540,1731573052988,-500.0,0.00021917,2]
[342188541,1731573052998,-504.12257384,0.00021917,2]
[342188542,1731573053007,-500.0,0.00021917,2]
[342188543,1731573053016,-500.2,0.00021917,2]
[342188544,1731573053026,-785.99,0.00021917,2]
[342188545,1731573053035,-500.0,0.00021917,2]
[342188546,1731573053045,-500.0,0.00021917,2]
[342188547,1731573053055,-300.78704109,0.00021917,2]
[342188548,1731573053066,-502.3745158,0.00021917,2]
[342188549,1731573053076,-547.76401928,0.00021917,2]
[342188550,1731573053085,-502.49398749,0.00021917,2]
[342188551,1731573053095,-500.0,0.00021917,2]
[342188552,1731573053104,-749.97,0.00021917,2]
[342188553,1731573053113,-500.0,0.00021917,2]
[342188554,1731573053123,-414.92989554,0.00021917,2]
[342188555,1731573053133,-151.0,0.00021917,2]
[342188556,1731573053142,-151.323715,0.00021917,2]
[342188557,1731573053151,-500.0,0.00021917,2]
[342188558,1731573053161,-691.75,0.00021917,2]
[342188559,1731573053170,-1127.81,0.00021917,2]
[342188560,1731573053178,-500.0,0.00021917,2]
[342188561,1731573053188,-500.0,0.00021917,2]
[342188562,1731573053197,-500.0,0.00021917,2]
[342188563,1731573053206,-500.0,0.00021917,2]
[342188564,1731573053216,-500.0,0.00021917,2]
[342188565,1731573053225,-500.0,0.00021917,2]
[342188566,1731573053234,-500.0,0.00021917,2]
[342188567,1731573053243,-500.0,0.00021917,2]
[342188568,1731573053256,-845.95,0.00021917,2]
[342188569,1731573053266,-500.0,0.00021917,2]
[342188570,1731573053276,-1203.61,0.00021917,2]
[342188571,1731573053285,-504.57589056,0.00021917,2]
[342188572,1731573053294,-500.0,0.00021917,2]
[342188573,1731573053305,-500.0,0.00021917,2]
[342188574,1731573053317,-500.0,0.00021917,2]
[342188575,1731573053326,-500.0,0.00021917,2]
[342188576,1731573053335,-500.0,0.00021917,2]
[342188577,1731573053344,-500.0,0.00021917,2]
[342188578,1731573053352,-500.0,0.00021917,2]
[342188579,1731573053361,-500.0,0.00021917,2]
[342188580,1731573053370,-500.0,0.00021917,2]
[342188581,1731573053380,-817.32,0.00021917,2]
[342188582,1731573053392,-500.0,0.00021917,2]
[342188583,1731573053401,-1024.69,0.00021917,2]
[342188584,1731573053410,-500.0,0.00021917,2]
[342188585,1731573053419,-500.0,0.00021917,2]
[342188586,1731573053429,-500.0,0.00021917,2]
[342188587,1731573053439,-500.0,0.00021917,2]
[342188588,1731573053448,-502.82339473,0.00021917,2]
[342188589,1731573053457,-500.0,0.00021917,2]
[342188590,1731573053466,-500.0,0.00021917,2]
[342188591,1731573053476,-500.0,0.00021917,2]
[342188592,1731573053485,-256.04083261,0.00021917,2]
[342188593,1731573053495,-500.0,0.00021918,2]
[342188594,1731573053504,-500.0,0.00021918,2]
[342188595,1731573053514,-179.61206157,0.00021918,2]
[342188596,1731573053523,-151.37478127,0.0002192,7]
[342188597,1731573053533,-151.37,0.0002192,7]
[342188598,1731573053542,-151.37478127,0.0002192,7]
[342188599,1731573053552,-151.37478127,0.0002192,7]
[342188600,1731573053568,-151.37,0.0002192,7]
[342188601,1731573053577,-662.667239,0.0002192,7]
[342188602,1731573053587,-662.667239,0.0002192,7]
[342188603,1731573053596,-151.0,0.0002192,7]
[342188604,1731573053606,-151.0,0.0002192,7]
[342188605,1731573053616,-163.702493,0.0002192,7]
[342188606,1731573053626,-163.702493,0.0002192,7]
[342188607,1731573053635,-151.67419691,0.0002192,7]
[342188608,1731573053644,-151.67419691,0.0002192,7]
[342188609,1731573053654,-151.67419691,0.0002192,7]
[342188610,1731573053663,-151.67419691,0.0002192,7]
[342188611,1731573053673,-151.67419691,0.0002192,7]
[342188612,1731573053683,-151.67419691,0.0002192,7]
[342188613,1731573053692,-151.67419691,0.0002192,7]
[342188614,1731573053701,-151.67419691,0.0002192,7]
[342188615,1731573053711,-151.67419691,0.0002192,7]
[342188616,1731573053720,-151.67419691,0.0002192,7]
[342188617,1731573053730,-151.67419691,0.0002192,7]
[342188618,1731573053739,-151.67419691,0.0002192,7]
[342188619,1731573053748,-151.67419691,0.0002192,7]
[342188620,1731573053758,-151.67,0.0002192,7]
[342188621,1731573053859,-159.25790675,0.0002192,7]
[342188622,1731573053879,-159.25790675,0.0002192,7]
[342188623,1731573053890,-159.25790675,0.0002192,7]
[342188624,1731573053901,-159.25790675,0.0002192,7]
[342188625,1731573053911,-159.25790675,0.0002192,7]
[342188626,1731573053920,-159.25790675,0.0002192,7]
[342188627,1731573053933,-159.25790675,0.0002192,7]
[342188628,1731573053943,-159.25790675,0.0002192,7]
[342188629,1731573053954,-159.25790675,0.0002192,7]
[342188630,1731573053964,-159.25790675,0.0002192,7]
[342188631,1731573053973,-159.25790675,0.0002192,7]
[342188632,1731573053983,-159.25790675,0.0002192,7]
[342188633,1731573053992,-159.25790675,0.0002192,7]
[342188634,1731573054001,-159.25790675,0.0002192,7]
[342188635,1731573054010,-159.25790675,0.0002192,7]
[342188636,1731573054020,-159.25790675,0.0002192,7]
[342188637,1731573054029,-159.25790675,0.0002192,7]
[342188638,1731573054038,-159.25790675,0.0002192,7]
[342188639,1731573054048,-159.25790675,0.0002192,7]
[342188640,1731573054061,-159.25,0.0002192,7]
[342188641,1731573054070,-1351.4,0.00021941,2]
[342188642,1731573054080,-501.29813577,0.00021973,2]
[342188643,1731573054090,-500.0,0.00021973,2]
[342188644,1731573054100,-162.04119911,0.00021973,2]
[342188645,1731573054110,-500.85937213,0.00021973,2]
[342188646,1731573054119,-501.47739479,0.00021973,2]
[342188647,1731573054129,-500.0,0.00021973,2]
[342188648,1731573054138,-500.0,0.00021973,2]
[342188649,1731573054148,-500.80098486,0.00021973,2]
[342188650,1731573054157,-500.0,0.00021973,2]
[342188651,1731573054166,-500.0,0.00021973,2]
[342188652,1731573054176,-500.0,0.00021973,2]
[342188653,1731573054186,-500.0,0.00021973,2]
[342188654,1731573054196,-305.74725891,0.00021973,2]
[342188655,1731573054206,-500.0,0.00021973,2]
[342188656,1731573054215,-500.0,0.00021973,2]
[342188657,1731573054225,-195.027818,0.00021973,7]
[342188658,1731573054234,-195.027818,0.00021973,7]
[342188659,1731573054244,-1522.575808,0.00021973,7]
[342188660,1731573054253,-1522.575808,0.00021973,7]
[342188661,1731573054262,-151.0,0.00021973,7]
[342188662,1731573054272,-592.303162,0.00021973,7]
[342188663,1731573054282,-592.303162,0.00021973,7]
[342188664,1731573054291,-263535.93329448,0.00022,30]
[342188665,1731573054301,-2028.17248923,0.00022,2]
[342188666,1731573054313,-662.667239,0.00022,7]
[342188667,1731573054322,-662.667239,0.00022,7]
[342188668,1731573054332,-151.0,0.00022,7]
[342188669,1731573054341,-173.925541,0.00022,7]
[342188670,1731573054350,-151.0,0.00022,7]
[342188671,1731573054360,-151.0,0.00022,7]
[342188672,1731573054370,-151.0,0.00022,7]
[342188673,1731573054379,-151.0,0.00022,7]
[342188674,1731573054389,-153.517899,0.00022,7]
[342188675,1731573054399,-153.517899,0.00022,7]
[342188676,1731573054409,-151.0,0.00022,7]
[342188677,1731573054419,-151.0,0.00022,7]
[342188678,1731573054428,-343.266896,0.00022,7]
[342188679,1731573054438,-151.0,0.00022,7]
[342188680,1731573054448,-1496.705765,0.00022,7]
[342188681,1731573054457,-1496.705765,0.00022,7]
[342188682,1731573054466,-163.702493,0.00022,7]
[342188683,1731573054475,-163.702493,0.00022,7]
[342188684,1731573054484,-219.38425,0.00022,7]
[342188685,1731573054494,-199.097967,0.00022,7]
[342188686,1731573054503,-199.097967,0.00022,7]
[342188687,1731573054512,-260.123971,0.00022,7]
[342188688,1731573054522,-195.027818,0.00022,7]
[342188689,1731573054531,-195.027818,0.00022,7]
[342188690,1731573054540,-245.038897,0.00022,7]
[342188691,1731573054549,-245.038897,0.00022,7]
[342188692,1731573054560,-485.738914,0.00022,7]
[342188693,1731573054569,-485.738914,0.00022,7]
[342188694,1731573054578,-230.24763,0.00022,7]
[342188695,1731573054588,-230.24763,0.00022,7]
[342188696,1731573054597,-609.137778,0.00022,7]
[342188697,1731573054606,-609.137778,0.00022,7]
[342188698,1731573054616,-1522.575808,0.00022,7]
[342188699,1731573054625,-487.196558,0.00022,7]
[342188700,1731573054635,-487.196558,0.00022,7]
[342188701,1731573054645,-1522.575808,0.00022,7]
[342188702,1731573054654,-151.0,0.00022,7]
[342188703,1731573054663,-151.0,0.00022,7]
[342188704,1731573054672,-59000.0,0.00022,2]
[342188705,1731573054680,-151.0,0.00022,7]
[342188706,1731573054689,-367.699136,0.00022,7]
[342188707,1731573054699,-367.699136,0.00022,7]
[342188708,1731573054708,-3283.68949,0.00022,7]
[342188709,1731573054718,-3283.68949,0.00022,7]
[342188710,1731573054729,-304.002608,0.00022,7]
[342188711,1731573054738,-304.002608,0.00022,7]
[342188712,1731573054748,-873.165166,0.00022,7]
[342188713,1731573054758,-873.165166,0.00022,7]
[342188714,1731573054767,-638.942516,0.00022,7]
[342188715,1731573054777,-638.942516,0.00022,7]
[342188716,1731573054786,-1276.77936,0.00022,7]
[342188717,1731573054796,-649.414355,0.00022,7]
[342188718,1731573054805,-1276.77936,0.00022,7]
[342188719,1731573054818,-649.414355,0.00022,7]
[342188720,1731573054828,-527.191899,0.00022,7]
[342188721,1731573054837,-527.191899,0.00022,7]
[342188722,1731573054849,-151.0,0.00022,7]
[342188723,1731573054861,-4760.481665,0.00022,7]
[342188724,1731573054871,-4760.481665,0.00022,7]
[342188725,1731573054881,-151.0,0.00022,7]
[342188726,1731573054890,-1519.617696,0.00022,7]
[342188727,1731573054900,-1519.617696,0.00022,7]
[342188728,1731573054909,-42944.6142435,0.00022,30]
[342188729,1731573054918,-151.0,0.00022,7]
[342188730,1731573054930,-592.303162,0.00022,7]
[342188731,1731573054940,-592.303162,0.00022,7]
[342188732,1731573054950,-662.667239,0.00022191,7]
[342188733,1731573054959,-662.667239,0.00022191,7]
[342188734,1731573054969,-662.667239,0.00022191,7]
[342188735,1731573054979,-662.667239,0.00022191,7]
[342188736,1731573054988,-151.0,0.00022191,7]
[342188737,1731573054998,-151.0,0.00022191,7]
[342188738,1731573055008,-151.0,0.00022191,7]
[342188739,1731573055019,-151.0,0.00022191,7]
[342188740,1731573055033,-151.0,0.00022191,7]
[342188741,1731573055048,-151.0,0.00022191,7]
[342188742,1731573055063,-151.0,0.00022191,7]
[342188743,1731573055080,-151.0,0.00022191,7]
[342188744,1731573055093,-151.0,0.00022191,7]
[342188745,1731573055107,-273.44152,0.00022191,7]
[342188746,1731573055121,-153.517899,0.00022191,7]
[342188747,1731573055135,-153.517899,0.00022191,7]
[342188748,1731573055149,-153.517899,0.00022191,7]
[342188749,1731573055160,-153.517899,0.00022191,7]
[342188750,1731573055172,-151.0,0.00022191,7]
[342188751,1731573055185,-151.0,0.00022191,7]
[342188752,1731573055199,-151.0,0.00022191,7]
[342188753,1731573055212,-151.0,0.00022191,7]
[342188754,1731573055226,-343.266896,0.00022191,7]
[342188755,1731573055241,-343.266896,0.00022191,7]
[342188756,1731573055254,-343.266896,0.00022191,7]
[342188757,1731573055269,-343.266896,0.00022191,7]
[342188758,1731573055283,-151.0,0.00022191,7]
[342188759,1731573055296,-151.0,0.00022191,7]
[342188760,1731573055308,-1496.705765,0.00022191,7]
[342188761,1731573055328,-1496.705765,0.00022191,7]
[342188762,1731573055341,-1496.705765,0.00022191,7]
[342188763,1731573055354,-1496.705765,0.00022191,7]
[342188764,1731573055366,-163.702493,0.00022191,7]
[342188765,1731573055377,-163.702493,0.00022191,7]
[342188766,1731573055394,-163.702493,0.00022191,7]
[342188767,1731573055406,-163.702493,0.00022191,7]
[342188768,1731573055417,-199.097967,0.00022191,7]
[342188769,1731573055428,-199.097967,0.00022191,7]
[342188770,1731573055442,-199.097967,0.00022191,7]
[342188771,1731573055454,-199.097967,0.00022191,7]
[342188772,1731573055465,-500.0,0.00022191,2]
[342188773,1731573055477,-500.0,0.00022191,2]
[342188774,1731573055489,-304.91377578,0.00022191,2]
[342188775,1731573055501,-500.0,0.00022191,2]
[342188776,1731573055513,-500.0,0.00022191,2]
[342188777,1731573055525,-195.027818,0.00022191,7]
[342188778,1731573055536,-195.027818,0.00022191,7]
[342188779,1731573055548,-195.027818,0.00022191,7]
[342188780,1731573055566,-195.027818,0.00022191,7]
[342188781,1731573055577,-195.027818,0.00022191,7]
[342188782,1731573055588,-195.027818,0.00022191,7]
[342188783,1731573055600,-245.038897,0.00022191,7]
[342188784,1731573055611,-245.038897,0.00022191,7]
[342188785,1731573055623,-245.038897,0.00022191,7]
[342188786,1731573055634,-245.038897,0.00022191,7]
[342188787,1731573055645,-245.038897,0.00022191,7]
[342188788,1731573055656,-245.038897,0.00022191,7]
[342188789,1731573055668,-500.0,0.00022191,2]
[342188790,1731573055679,-500.0,0.00022191,2]
[342188791,1731573055690,-500.0,0.00022191,2]
[342188792,1731573055702,-257.17440574,0.00022191,2]
[342188793,1731573055713,-500.0,0.00022191,2]
[342188794,1731573055724,-500.0,0.00022191,2]
[342188795,1731573055735,-500.0,0.00022191,2]
[342188796,1731573055746,-500.0,0.00022191,2]
[342188797,1731573055757,-500.0,0.00022191,2]
[342188798,1731573055768,-500.0,0.00022191,2]
[342188799,1731573055779,-502.42248631,0.00022191,2]
[342188800,1731573055790,-485.738914,0.00022191,7]
[342188801,1731573055801,-500.0,0.00022191,2]
[342188802,1731573055815,-485.738914,0.00022191,7]
[342188803,1731573055826,-501.67174681,0.00022191,2]
[342188804,1731573055837,-506.68688787,0.00022191,2]
[342188805,1731573055849,-485.738914,0.00022191,7]
[342188806,1731573055862,-485.738914,0.00022191,7]
[342188807,1731573055874,-501.23396168,0.00022191,2]
[342188808,1731573055885,-503.03330588,0.00022191,2]
[342188809,1731573055897,-500.0,0.00022191,2]
[342188810,1731573055908,-502.71871818,0.00022191,2]
[342188811,1731573055919,-500.0,0.00022191,2]
[342188812,1731573055932,-500.0,0.00022191,2]
[342188813,1731573055944,-635.13302333,0.00022191,2]
[342188814,1731573055955,-500.0,0.00022191,2]
[342188815,1731573055966,-500.0,0.00022191,2]
[342188816,1731573055979,-501.65194262,0.00022191,2]
[342188817,1731573055991,-501.27183703,0.00022191,2]
[342188818,1731573056002,-504.55,0.00022191,2]
[342188819,1731573056013,-500.0,0.00022191,2]
[342188820,1731573056024,-188.55530953,0.00022191,2]
[342188821,1731573056036,-500.0,0.00022191,2]
[342188822,1731573056047,-500.0,0.00022191,2]
[342188823,1731573056058,-511.18047245,0.00022191,2]
[342188824,1731573056070,-501.01118042,0.00022191,2]
[342188825,1731573056081,-500.0,0.00022191,2]
[342188826,1731573056093,-574.07291266,0.00022191,2]
[342188827,1731573056104,-510.55224639,0.00022191,2]
[342188828,1731573056116,-500.0,0.00022191,2]
[342188829,1731573056127,-757.47,0.00022191,2]
[342188830,1731573056139,-500.0,0.00022191,2]
[342188831,1731573056150,-500.0,0.00022191,2]
[342188832,1731573056161,-500.0,0.00022191,2]
[342188833,1731573056174,-500.0,0.00022191,2]
[342188834,1731573056186,-500.0,0.00022191,2]
[342188835,1731573056198,-500.0,0.00022191,2]
[342188836,1731573056209,-500.0,0.00022191,2]
[342188837,1731573056220,-500.0,0.00022191,2]
[342188838,1731573056231,-500.0,0.00022191,2]
[342188839,1731573056242,-503.36588468,0.00022191,2]
[342188840,1731573056254,-514.09814735,0.00022191,2]
[342188841,1731573056265,-500.0,0.00022191,2]
[342188842,1731573056276,-500.0,0.00022191,2]
[342188843,1731573056287,-200.0,0.00022191,2]
[342188844,1731573056297,-500.0,0.00022191,2]
[342188845,1731573056308,-230.24763,0.00022191,7]
[342188846,1731573056321,-230.24763,0.00022191,7]
[342188847,1731573056332,-230.24763,0.00022191,7]
[342188848,1731573056343,-500.0,0.00022191,2]
[342188849,1731573056355,-230.24763,0.00022191,7]
[342188850,1731573056366,-500.0,0.00022191,2]
[342188851,1731573056376,-230.24763,0.00022191,7]
[342188852,1731573056387,-500.0,0.00022191,2]
[342188853,1731573056398,-230.24763,0.00022191,7]
[342188854,1731573056408,-835.68,0.00022191,2]
[342188855,1731573056419,-500.0,0.00022191,2]
[342188856,1731573056430,-509.13467432,0.00022191,2]
[342188857,1731573056441,-504.35186846,0.00022191,2]
[342188858,1731573056639,-500.0,0.00022191,2]
[342188859,1731573056652,-500.0,0.00022191,2]
[342188860,1731573056661,-500.0,0.00022191,2]
[342188861,1731573056671,-500.0,0.00022191,2]
[342188862,1731573056682,-536.34137126,0.00022191,2]
[342188863,1731573056693,-509.96542892,0.00022191,2]
[342188864,1731573056702,-502.26965351,0.00022191,2]
[342188865,1731573056711,-500.0,0.00022191,2]
[342188866,1731573056722,-500.0,0.00022191,2]
[342188867,1731573056732,-528.9570977,0.00022191,2]
[342188868,1731573056742,-609.137778,0.00022191,7]
[342188869,1731573056752,-505.88621674,0.00022191,2]
[342188870,1731573056761,-500.0,0.00022191,2]
[342188871,1731573056771,-609.137778,0.00022191,7]
[342188872,1731573056780,-609.137778,0.00022191,7]
[342188873,1731573056789,-500.0,0.00022191,2]
[342188874,1731573056798,-500.0,0.00022191,2]
[342188875,1731573056808,-609.137778,0.00022191,7]
[342188876,1731573056820,-609.137778,0.00022191,7]
[342188877,1731573056829,-609.137778,0.00022191,7]
[342188878,1731573056839,-500.0,0.00022191,2]
[342188879,1731573056851,-500.0,0.00022191,2]
[342188880,1731573056863,-500.0,0.00022191,2]
[342188881,1731573056872,-502.73566215,0.00022191,2]
[342188882,1731573056882,-500.0,0.00022191,2]
[342188883,1731573056892,-504.11013467,0.00022191,2]
[342188884,1731573056901,-505.96172205,0.00022191,2]
[342188885,1731573056911,-504.93214845,0.00022191,2]
[342188886,1731573056921,-500.0,0.00022191,2]